bitfinex/quotes_BTCUSD_20230108
["timestamp","ask_amount","ask_price","bid_price","bid_amount"]
[1673197854879,0.16085533,16952.0,16951.0,2.23828765]
[1673197856684,0.16085533,16952.0,16951.0,2.50364966]
[1673197857977,0.16085533,16952.0,16951.0,3.09220425]
[1673197858229,0.16085533,16952.0,16951.0,3.09220847]
[1673197858505,0.16085533,16952.0,16951.0,3.09220866]
[1673197858756,0.16085533,16952.0,16951.0,3.09220867]
[1673197860184,0.16085533,16952.0,16951.0,3.46038467]
[1673197860402,0.16085533,16952.0,16951.0,3.16543467]
[1673197860668,0.16085533,16952.0,16951.0,1.94333765]
[1673197861630,0.16085533,16952.0,16951.0,2.31151365]
[1673197862170,0.16085533,16952.0,16951.0,1.94333765]
[1673197866506,0.16085533,16952.0,16951.0,2.20869966]
[1673197868404,0.16085533,16952.0,16951.0,2.50364966]
[1673197868670,0.16085533,16952.0,16951.0,3.09116189]
[1673197868918,0.16085533,16952.0,16951.0,2.87182566]
[1673197869168,0.16085533,16952.0,16951.0,2.50364966]
[1673197871755,0.16085533,16952.0,16951.0,3.09057415]
[1673197871982,0.16085533,16952.0,16951.0,3.45874877]
[1673197872242,0.16085533,16952.0,16951.0,3.09057261]
[1673197872738,0.16085533,16952.0,16951.0,3.45874861]
[1673197873483,0.16085533,16952.0,16951.0,3.09057261]
[1673197874004,0.16085533,16952.0,16951.0,2.50364966]
[1673197875086,0.16085533,16952.0,16951.0,2.23828765]
[1673197879571,0.16085533,16952.0,16951.0,2.50364966]
[1673197880776,0.16085533,16952.0,16951.0,2.23828765]
[1673197881513,0.16085533,16952.0,16951.0,2.50364966]
[1673197882021,0.16085533,16952.0,16951.0,3.11847305]
[1673197882818,0.16085533,16952.0,16951.0,3.48664905]
[1673197883308,0.16085533,16952.0,16951.0,3.11847305]
[1673197885569,0.16085533,16952.0,16951.0,3.48664905]
[1673197885811,0.16085533,16952.0,16951.0,3.11847305]
[1673197886821,0.16085533,16952.0,16951.0,2.85311104]
[1673197887074,0.16085533,16952.0,16951.0,2.23828765]
[1673197887841,0.16085533,16952.0,16951.0,2.50364966]
[1673197889040,0.16085533,16952.0,16951.0,3.10895822]
[1673197889253,0.16085533,16952.0,16951.0,2.50364966]
[1673197889502,0.16085533,16952.0,16951.0,3.10902298]
[1673197890032,0.16085533,16952.0,16951.0,3.47719898]
[1673197891649,0.16085533,16952.0,16951.0,3.10902298]
[1673197892324,0.16085533,16952.0,16951.0,3.47719898]
[1673197893032,0.16085533,16952.0,16951.0,3.10902298]
[1673197893528,0.16085533,16952.0,16951.0,3.28322298]
[1673197893778,0.16085533,16952.0,16951.0,3.65139898]
[1673197895710,0.16085533,16952.0,16951.0,3.28322298]
[1673197895966,0.16085533,16952.0,16951.0,3.65139898]
[1673197898249,0.16085533,16952.0,16951.0,2.98827298]
[1673197898503,0.16085533,16952.0,16951.0,3.28322298]
[1673197898751,0.16085533,16952.0,16951.0,3.65139898]
[1673197900550,0.16085533,16952.0,16951.0,3.28322298]
[1673197901567,0.16085533,16952.0,16951.0,3.65139898]
[1673197902086,0.16085533,16952.0,16951.0,3.65160213]
[1673197902851,0.16085533,16952.0,16951.0,4.41841768]
[1673197905226,0.16085533,16952.0,16951.0,4.2273488]
[1673197905420,0.16085533,16952.0,16951.0,4.05024168]
[1673197906426,0.16085533,16952.0,16951.0,3.87335261]
[1673197906678,0.16085533,16952.0,16951.0,4.22734918]
[1673197907185,0.16085533,16952.0,16951.0,4.41841768]
[1673197908416,0.16085533,16952.0,16951.0,4.41859474]
[1673197908961,0.16078572,16952.0,16951.0,4.41859474]
[1673197909648,0.16078572,16952.0,16951.0,4.41858474]
[1673197917051,0.16078572,16952.0,16951.0,4.05040874]
[1673197917300,0.16078572,16952.0,16951.0,4.41858474]
[1673197918024,0.16078572,16952.0,16951.0,4.05040874]
[1673197918515,0.16078572,16952.0,16951.0,4.41859474]
[1673197918740,0.16078572,16952.0,16951.0,4.40859474]
[1673197921771,0.16078572,16952.0,16951.0,4.04041874]
[1673197921983,0.16078572,16952.0,16951.0,3.74546874]
[1673197922236,0.16078572,16952.0,16951.0,4.04041874]
[1673197922480,0.16078572,16952.0,16951.0,4.40859474]
[1673197922984,0.16078572,16952.0,16951.0,4.04041874]
[1673197923233,0.16078572,16952.0,16951.0,4.04026168]
[1673197923477,0.16078572,16952.0,16951.0,4.04043874]
[1673197923959,0.16078572,16952.0,16951.0,4.21750243]
[1673197924203,0.16078572,16952.0,16951.0,4.58567843]
[1673197924458,0.16078572,16952.0,16951.0,4.21750243]
[1673197924707,0.16078572,16952.0,16951.0,4.2175022]
[1673197925236,0.16078572,16952.0,16951.0,4.21750464]
[1673197925744,0.16078572,16952.0,16951.0,4.04043874]
[1673197926236,0.16078572,16952.0,16951.0,4.04041874]
[1673197926747,0.16078572,16952.0,16951.0,4.40859474]
[1673197926968,0.16078572,16952.0,16951.0,4.04040874]
[1673197927473,0.16078572,16952.0,16951.0,4.88570715]
[1673197928489,0.16078572,16952.0,16951.0,4.88582634]
[1673197929482,0.16078572,16952.0,16951.0,5.58582634]
[1673197929980,0.16078572,16952.0,16951.0,5.2861507]
[1673197930229,0.16078572,16952.0,16951.0,5.5861507]
[1673197932702,0.16078572,16952.0,16951.0,5.2861507]
[1673197933474,0.16078572,16952.0,16951.0,4.74103651]
[1673197934984,0.16078572,16952.0,16951.0,5.18352708]
[1673197935244,0.16078572,16952.0,16951.0,5.10921866]
[1673197935492,0.16078572,16952.0,16951.0,5.55170308]
[1673197935742,0.16078572,16952.0,16951.0,5.10921866]
[1673197936237,0.16078572,16952.0,16951.0,4.74104266]
[1673197936735,0.16078572,16952.0,16951.0,5.18352708]
[1673197937246,0.16078572,16952.0,16951.0,4.9179747]
[1673197937743,0.16078572,16952.0,16951.0,4.74104824]
[1673197938266,0.16078572,16952.0,16951.0,4.9179747]
[1673197938519,0.16078572,16952.0,16951.0,5.18354045]
[1673197938772,0.16078572,16952.0,16951.0,4.9179747]
[1673197939495,0.16067922,16952.0,16951.0,4.9179747]
[1673197940704,0.16067922,16952.0,16951.0,5.2179747]
[1673197941461,0.16067922,16952.0,16951.0,4.9179747]
[1673197941723,0.16067922,16952.0,16951.0,5.2179747]
[1673197941989,0.16067922,16952.0,16951.0,4.8861507]
[1673197942275,0.16067922,16952.0,16951.0,4.5179747]
[1673197943001,0.16067922,16952.0,16951.0,5.2179747]
[1673197943256,0.16067922,16952.0,16951.0,5.5861507]
[1673197943768,0.16067922,16952.0,16951.0,5.2179747]
[1673197947677,0.16067922,16952.0,16951.0,5.5861507]
[1673197948701,0.16067922,16952.0,16951.0,5.5861207]
[1673197952018,0.16067922,16952.0,16951.0,5.23200494]
[1673197952278,0.16067922,16952.0,16951.0,5.21790069]
[1673197954128,0.16067922,16952.0,16951.0,5.58607669]
[1673197954700,0.16067922,16952.0,16951.0,4.88607669]
[1673197954952,0.16067922,16952.0,16951.0,4.16382894]
[1673197955417,0.16067922,16952.0,16951.0,5.23200494]
[1673197956679,0.16067922,16952.0,16951.0,5.58604649]
[1673197957191,0.16067922,16952.0,16951.0,5.23200494]
[1673197958171,0.16067922,16952.0,16951.0,4.78952052]
[1673197958682,0.16067922,16952.0,16951.0,4.8638987]
[1673197959990,0.16067922,16952.0,16951.0,5.21795825]
[1673197961441,0.16067922,16952.0,16951.0,4.51796189]
[1673197961686,0.16067922,16952.0,16951.0,4.51796186]
[1673197961942,0.16067922,16952.0,16951.0,4.1638987]
[1673197962210,0.16067922,16952.0,16951.0,4.51796205]
[1673197962442,0.16067922,16952.0,16951.0,5.58613805]
[1673197962692,0.16067922,16952.0,16951.0,5.21796205]
[1673197962954,0.16067922,16952.0,16951.0,4.8638987]
[1673197964656,0.16061552,16952.0,16951.0,4.8638987]
[1673197965667,0.16061552,16952.0,16951.0,5.2320747]
[1673197965924,0.16061552,16952.0,16951.0,4.8639087]
[1673197966670,0.16061552,16952.0,16951.0,5.2320847]
[1673197967434,0.16061552,16952.0,16951.0,4.8639087]
[1673197968441,0.16061552,16952.0,16951.0,4.1639087]
[1673197968954,0.16061552,16952.0,16951.0,4.5320847]
[1673197969443,0.16061552,16952.0,16951.0,5.2320847]
[1673197969689,0.16061552,16952.0,16951.0,5.2320747]
[1673197972955,0.16061552,16952.0,16951.0,4.78952052]
[1673197973203,0.16061552,16952.0,16951.0,4.42134452]
[1673197974466,0.16061552,16952.0,16951.0,4.86396687]
[1673197974716,0.16061552,16952.0,16951.0,4.78952052]
[1673197975243,0.16061552,16952.0,16951.0,6.41892453]
[1673197975755,0.56542219,16954.0,16953.0,0.6]
[1673197975999,0.56542219,16954.0,16953.0,5.29780206]
[1673197976258,0.56542219,16954.0,16953.0,5.15521327]
[1673197976769,0.56542219,16954.0,16953.0,5.55521327]
[1673197977006,0.56842219,16954.0,16953.0,5.87021327]
[1673197978804,0.55342219,16954.0,16953.0,5.87021327]
[1673197979046,0.55342219,16954.0,16953.0,5.57021327]
[1673197979551,0.55342219,16954.0,16953.0,5.57039031]
[1673197979809,0.55342219,16954.0,16953.0,5.87039031]
[1673197980039,0.55342219,16954.0,16953.0,5.57039031]
[1673197981511,0.55342219,16954.0,16953.0,5.74735842]
[1673197981757,0.55342219,16954.0,16953.0,5.39328739]
[1673197983300,0.55342219,16954.0,16953.0,5.02511139]
[1673197983553,0.55342219,16954.0,16953.0,5.39328739]
[1673197984095,0.55342219,16954.0,16953.0,5.87039031]
[1673197985534,0.55342219,16954.0,16953.0,5.87032204]
[1673197986759,0.55342219,16954.0,16953.0,5.17032204]
[1673197987783,0.55342219,16954.0,16953.0,5.57032204]
[1673197988035,0.55342219,16954.0,16953.0,5.87032204]
[1673197989301,0.55342219,16954.0,16953.0,5.57032204]
[1673197989535,0.55342219,16954.0,16953.0,5.87032204]
[1673197990041,0.55342219,16954.0,16953.0,5.22025163]
[1673197990295,0.55342219,16954.0,16953.0,4.34932504]
[1673197990811,0.55342219,16954.0,16953.0,3.28114904]
[1673197993121,0.55342219,16954.0,16953.0,3.64932504]
[1673197993879,0.55342219,16954.0,16953.0,3.10434842]
[1673197995368,0.55342219,16954.0,16953.0,3.47252442]
[1673197995866,0.55342219,16954.0,16953.0,3.10434842]
[1673197997515,0.55342219,16954.0,16953.0,3.47252442]
[1673197998821,0.55342219,16954.0,16953.0,3.10434842]
[1673198000924,0.55342219,16954.0,16953.0,3.47252442]
[1673198001132,0.55342219,16954.0,16953.0,3.64932504]
[1673198003394,0.55342219,16954.0,16953.0,3.47512504]
[1673198003882,0.55342219,16954.0,16953.0,3.10694904]
[1673198004650,0.55342219,16954.0,16953.0,3.47512504]
[1673198005412,0.55342219,16954.0,16953.0,3.10694904]
[1673198006958,0.55342219,16954.0,16953.0,3.37250231]
[1673198007213,0.55342219,16954.0,16953.0,3.66739231]
[1673198007463,0.55342219,16954.0,16953.0,3.40183904]
[1673198013935,0.55342219,16954.0,16953.0,4.03556831]
[1673198014162,0.55342219,16954.0,16953.0,4.58932844]
[1673198015782,0.55342219,16954.0,16953.0,4.03556831]
[1673198016036,0.55342219,16954.0,16953.0,4.5896463]
[1673198017836,0.55342219,16954.0,16953.0,5.2896463]
[1673198018103,0.00290456,16954.0,16953.0,5.2896463]
[1673198018665,0.00290456,16954.0,16953.0,5.46691671]
[1673198018896,0.00290456,16954.0,16953.0,6.11815223]
[1673198019152,0.00290456,16954.0,16953.0,5.94082092]
[1673198019399,0.00290456,16954.0,16953.0,5.64082092]
[1673198020682,1.32585381,16956.0,16954.0,0.6]
[1673198020941,1.32585381,16956.0,16954.0,2.51974981]
[1673198021190,0.17635518,16955.0,16954.0,2.51974981]
[1673198021445,0.17635518,16955.0,16954.0,1.953811]
[1673198021961,0.17635518,16955.0,16954.0,1.959811]
[1673198022226,1.44685381,16956.0,16954.0,2.52580316]
[1673198022498,1.32585381,16956.0,16954.0,2.51980316]
[1673198022724,0.23635518,16955.0,16954.0,2.52680316]
[1673198022947,0.23635518,16955.0,16954.0,1.960811]
[1673198023989,0.17635518,16955.0,16954.0,1.953811]
[1673198024238,0.17635518,16955.0,16954.0,1.959811]
[1673198024491,0.17635518,16955.0,16954.0,1.953811]
[1673198024757,0.23635518,16955.0,16954.0,1.960811]
[1673198026715,0.23635518,16955.0,16954.0,2.255701]
[1673198031246,0.23635518,16955.0,16954.0,2.82167794]
[1673198031463,0.23635518,16955.0,16954.0,2.255701]
[1673198032451,0.23635518,16955.0,16954.0,2.99851428]
[1673198033519,0.23635518,16955.0,16954.0,2.82431428]
[1673198034273,0.23635518,16955.0,16954.0,2.64747794]
[1673198034531,0.23635518,16955.0,16954.0,2.82431428]
[1673198035075,0.23635518,16955.0,16954.0,2.64747794]
[1673198035557,0.23635518,16955.0,16954.0,2.82431428]
[1673198036334,0.23635518,16955.0,16954.0,2.64747794]
[1673198036563,0.23635518,16955.0,16954.0,2.64748427]
[1673198036819,0.23635518,16955.0,16954.0,2.081501]
[1673198037070,0.23635518,16955.0,16954.0,2.64745954]
[1673198037788,0.23635518,16955.0,16954.0,2.82429588]
[1673198038303,0.23627923,16955.0,16954.0,2.82429588]
[1673198041520,0.23627923,16955.0,16954.0,2.52569088]
[1673198041754,0.23627923,16955.0,16954.0,2.82057088]
[1673198043550,0.06,16955.0,16954.0,2.82057088]
[1673198043804,0.06,16955.0,16954.0,3.41040188]
[1673198044339,0.06,16955.0,16954.0,5.27254056]
[1673198044611,0.06,16955.0,16954.0,5.83079504]
[1673198044869,0.12477156,16956.0,16955.0,0.63065036]
[1673198045153,0.12477156,16956.0,16955.0,5.35868759]
[1673198045389,0.12477156,16956.0,16955.0,6.05868759]
[1673198046152,0.12477156,16956.0,16955.0,5.70527824]
[1673198046153,0.00377156,16956.0,16955.0,5.70527824]
[1673198046674,0.00377156,16956.0,16955.0,5.73213038]
[1673198046931,0.00877156,16956.0,16955.0,5.85513038]
[1673198047185,0.00877156,16956.0,16955.0,6.20818352]
[1673198047440,0.00377156,16956.0,16955.0,5.73213038]
[1673198047770,0.00877156,16956.0,16955.0,5.85513038]
[1673198049541,0.00877156,16956.0,16955.0,6.207945]
[1673198051112,0.00379338,16957.0,16956.0,0.6]
[1673198051351,0.00379338,16957.0,16956.0,5.09121581]
[1673198051634,0.00379338,16957.0,16956.0,4.82670689]
[1673198052417,0.00879338,16957.0,16956.0,4.95870689]
[1673198053261,0.00879338,16957.0,16956.0,4.78236761]
[1673198053518,0.00879338,16957.0,16956.0,4.95870689]
[1673198057661,0.00879338,16957.0,16956.0,4.78236761]
[1673198059439,0.00708181,16958.0,16957.0,0.6]
[1673198059652,0.00708181,16958.0,16957.0,4.47089886]
[1673198061625,0.01108181,16958.0,16957.0,4.60289886]
[1673198064431,0.01108181,16958.0,16957.0,4.20289886]
[1673198065170,0.01108181,16958.0,16957.0,4.90289886]
[1673198069400,0.01108181,16958.0,16957.0,4.338384]
[1673198069655,0.01108181,16958.0,16957.0,4.60277591]
[1673198073356,0.01108181,16958.0,16957.0,4.30794591]
[1673198073548,0.01108181,16958.0,16957.0,4.60276591]
[1673198074278,0.01108181,16958.0,16957.0,4.30794591]
[1673198074526,0.01108181,16958.0,16957.0,4.60276591]
[1673198077215,0.01108181,16958.0,16957.0,4.60277591]
[1673198077493,0.01108181,16958.0,16957.0,4.77697591]
[1673198077718,0.01108181,16958.0,16957.0,7.67569682]
[1673198077974,1.81e-06,16958.0,16957.0,7.15504292]
[1673198078259,0.00699671,16959.0,16957.0,7.15504292]
[1673198078260,0.00699671,16959.0,16958.0,0.19616565]
[1673198078475,0.00699671,16959.0,16958.0,3.84043889]
[1673198078735,0.00699671,16959.0,16958.0,4.58968048]
[1673198078985,0.00699671,16959.0,16958.0,3.31068659]
[1673198079237,0.00699671,16959.0,16958.0,3.93008659]
[1673198079494,0.00699671,16959.0,16958.0,4.37107964]
[1673198079740,0.00699671,16959.0,16958.0,3.93025902]
[1673198080235,0.00699671,16959.0,16958.0,4.59035902]
[1673198080487,0.00699671,16959.0,16958.0,4.45235902]
[1673198080741,0.00699671,16959.0,16958.0,4.59035902]
[1673198082023,0.00699671,16959.0,16958.0,5.03113831]
[1673198083250,0.00699671,16959.0,16958.0,4.59035902]
[1673198084011,0.00699671,16959.0,16958.0,5.03108253]
[1673198084271,0.00699671,16959.0,16958.0,5.62077453]
[1673198084752,7.1e-07,16959.0,16958.0,5.62077453]
[1673198085014,0.00791763,16960.0,16958.0,5.62077585]
[1673198085285,0.00791763,16960.0,16959.0,2.66977958]
[1673198085544,0.00791763,16960.0,16959.0,5.44909358]
[1673198086532,0.00791763,16960.0,16959.0,6.21502561]
[1673198086796,0.00791763,16960.0,16959.0,6.0004734]
[1673198087804,0.00791763,16960.0,16959.0,6.35287192]
[1673198091548,0.14879372,16960.0,16959.0,5.65287192]
[1673198091806,0.00673926,16961.0,16960.0,0.6]
[1673198092036,0.00673926,16961.0,16960.0,5.97449209]
[1673198093047,0.00673926,16961.0,16960.0,6.11249209]
[1673198093540,0.00673926,16961.0,16960.0,6.6395402]
[1673198093809,0.00673926,16961.0,16960.0,6.28714168]
[1673198095621,0.00673926,16961.0,16960.0,6.90306417]
[1673198095884,0.00673926,16961.0,16960.0,6.46237498]
[1673198096135,0.00673926,16961.0,16960.0,6.46293768]
[1673198096374,0.00673926,16961.0,16960.0,6.1141834]
[1673198096638,0.00673926,16961.0,16960.0,5.5500883]
[1673198096906,0.00673926,16961.0,16960.0,4.32199614]
[1673198099204,0.00673926,16961.0,16960.0,4.61678614]
[1673198099694,0.00673926,16961.0,16960.0,4.91678614]
[1673198100457,0.00673926,16961.0,16960.0,4.61678614]
[1673198100705,0.00673926,16961.0,16960.0,4.32199614]
[1673198101147,0.00109826,16961.0,16960.0,4.32199614]
[1673198101903,0.00109826,16961.0,16960.0,4.13929614]
[1673198102153,0.00109826,16961.0,16960.0,3.77112014]
[1673198102915,0.00109826,16961.0,16960.0,3.92792014]
[1673198103160,0.00209826,16961.0,16960.0,4.06592014]
[1673198107853,0.00209826,16961.0,16960.0,3.77112014]
[1673198117432,0.00209826,16961.0,16960.0,4.85728835]
[1673198117508,0.00209826,16961.0,16960.0,6.10181232]
[1673198117913,0.00209826,16961.0,16960.0,6.1625223]
[1673198118997,0.00209826,16961.0,16960.0,5.81057299]
[1673198119510,0.00209826,16961.0,16960.0,6.16335747]
[1673198119780,0.00209826,16961.0,16960.0,6.16335932]
[1673198120822,0.00209826,16961.0,16960.0,5.81057299]
[1673198121318,0.00209826,16961.0,16960.0,6.16331757]
[1673198121598,0.00209826,16961.0,16960.0,5.83783914]
[1673198122310,0.00209826,16961.0,16960.0,5.81057299]
[1673198122831,0.00209826,16961.0,16960.0,6.16333927]
[1673198125077,0.00202018,16961.0,16960.0,6.16333927]
[1673198128131,0.00202018,16961.0,16960.0,5.81057299]
[1673198128411,0.0071924,16962.0,16961.0,0.78083664]
[1673198128631,0.0071924,16962.0,16961.0,5.26678288]
[1673198129386,0.0071924,16962.0,16961.0,5.44320684]
[1673198129636,0.0081924,16962.0,16961.0,4.92938034]
[1673198129887,0.0081924,16962.0,16961.0,5.22938034]
[1673198130128,0.0081924,16962.0,16961.0,4.92938034]
[1673198130863,0.0081924,16962.0,16961.0,5.22938034]
[1673198131621,0.0081924,16962.0,16961.0,5.40578288]
[1673198132134,0.0081924,16962.0,16961.0,5.99536988]
[1673198132625,0.0081924,16962.0,16961.0,5.51896375]
[1673198133130,0.0081924,16962.0,16961.0,5.81896375]
[1673198133663,0.0081924,16962.0,16961.0,5.99536988]
[1673198135360,0.0081924,16962.0,16961.0,6.17178313]
[1673198138122,0.0081924,16962.0,16961.0,5.87250183]
[1673198138372,0.0081924,16962.0,16961.0,6.17167751]
[1673198139111,0.0081924,16962.0,16961.0,5.99180751]
[1673198139361,0.0081924,16962.0,16961.0,5.81543751]
[1673198140862,0.0081924,16962.0,16961.0,5.6390502]
[1673198141352,0.0081924,16962.0,16961.0,5.3390502]
[1673198142243,0.0081924,16962.0,16961.0,4.76316254]
[1673198142489,0.0081924,16962.0,16961.0,5.33491959]
[1673198143193,0.0081924,16962.0,16961.0,5.9854069]
[1673198143327,0.0081924,16962.0,16961.0,5.39518342]
[1673198144636,0.0081924,16962.0,16961.0,4.83132684]
[1673198144890,0.0081924,16962.0,16961.0,5.83643635]
[1673198145403,0.0081924,16962.0,16961.0,5.8091702]
[1673198145674,0.0081924,16962.0,16961.0,6.16197855]
[1673198146647,0.0081924,16962.0,16961.0,5.8091702]
[1673198147399,0.0081924,16962.0,16961.0,6.16201292]
[1673198147632,0.0081924,16962.0,16961.0,6.42669932]
[1673198147842,0.0081924,16962.0,16961.0,6.16201292]
[1673198148339,0.0081924,16962.0,16961.0,6.16206379]
[1673198148605,0.0081924,16962.0,16961.0,5.98571382]
[1673198148849,0.0081924,16962.0,16961.0,6.42676112]
[1673198149135,0.0081924,16962.0,16961.0,6.16194453]
[1673198152569,0.0081924,16962.0,16961.0,6.16223893]
[1673198153334,0.0081924,16962.0,16961.0,5.63500181]
[1673198153591,0.0081924,16962.0,16961.0,5.98816563]
[1673198153859,0.0081924,16962.0,16961.0,5.98814376]
[1673198154088,0.0081924,16962.0,16961.0,5.63494616]
[1673198155317,0.0081924,16962.0,16961.0,5.19390796]
[1673198157346,0.0081924,16962.0,16961.0,5.94787626]
[1673198157856,0.0085706,16963.0,16962.0,0.60391209]
[1673198158111,0.0085706,16963.0,16962.0,6.14899769]
[1673198158609,0.0085706,16963.0,16962.0,5.97235654]
[1673198158860,0.0085706,16963.0,16962.0,5.81135682]
[1673198159126,0.0085706,16963.0,16962.0,6.55298938]
[1673198159376,0.0085706,16963.0,16962.0,6.28799769]
[1673198160392,0.0085706,16963.0,16962.0,5.81136179]
[1673198161969,0.0085706,16963.0,16962.0,6.11136179]
[1673198162714,0.0085706,16963.0,16962.0,6.55299435]
[1673198162933,0.0085706,16963.0,16962.0,6.28799769]
[1673198164224,0.0085706,16963.0,16962.0,5.98799769]
[1673198164473,0.0085706,16963.0,16962.0,5.81140533]
[1673198165490,0.0085706,16963.0,16962.0,5.6348099]
[1673198166797,0.0085706,16963.0,16962.0,5.63469164]
[1673198167084,0.0085706,16963.0,16962.0,5.49305908]
[1673198168423,0.0085706,16963.0,16962.0,5.49303908]
[1673198168754,0.00846924,16963.0,16962.0,5.49303908]
[1673198168982,0.00846924,16963.0,16962.0,5.93464076]
[1673198172345,0.00846924,16963.0,16962.0,6.28789487]
[1673198173071,0.00846924,16963.0,16962.0,5.93464076]
[1673198173338,0.00846924,16963.0,16962.0,6.10824076]
[1673198175015,0.00846924,16963.0,16962.0,5.66663908]
[1673198175825,0.00846924,16963.0,16962.0,6.10807783]
[1673198178584,0.00346924,16963.0,16962.0,6.10807783]
[1673198180831,0.00346924,16963.0,16962.0,6.46122109]
[1673198181089,0.00346924,16963.0,16962.0,6.10807783]
[1673198181562,0.00346924,16963.0,16962.0,6.46122206]
[1673198182105,0.00346924,16963.0,16962.0,5.81338783]
[1673198182358,0.00346924,16963.0,16962.0,6.10807783]
[1673198183361,0.00346924,16963.0,16962.0,6.46126006]
[1673198183610,0.00346924,16963.0,16962.0,6.10807783]
[1673198183869,0.00346924,16963.0,16962.0,6.46126505]
[1673198184130,0.00346924,16963.0,16962.0,6.10807783]
[1673198184375,0.00346924,16963.0,16962.0,6.10808783]
[1673198185213,0.00346924,16963.0,16962.0,6.46130391]
[1673198185902,0.00346924,16963.0,16962.0,6.10808783]
[1673198187145,0.00346924,16963.0,16962.0,6.46129166]
[1673198188447,0.00346924,16963.0,16962.0,5.76129166]
[1673198189510,0.00346924,16963.0,16962.0,6.46129166]
[1673198189772,0.00346924,16963.0,16962.0,4.40994301]
[1673198190063,0.00346924,16963.0,16962.0,3.66160437]
[1673198190357,0.37164524,16963.0,16962.0,3.39669333]
[1673198190547,0.37164524,16963.0,16962.0,3.22007109]
[1673198191311,0.00346924,16963.0,16962.0,3.22007109]
[1673198191817,0.37164524,16963.0,16962.0,2.52007109]
[1673198192330,0.00346924,16963.0,16962.0,2.52007109]
[1673198192843,0.37164524,16963.0,16962.0,2.52007109]
[1673198193101,0.37164524,16963.0,16962.0,1.92007109]
[1673198193390,0.37164524,16963.0,16962.0,1.91157109]
[1673198193643,0.5483561,16963.0,16962.0,1.91157109]
[1673198194341,1.45249319,16963.0,16962.0,1.32201809]
[1673198195697,1.18797191,16963.0,16962.0,1.32201809]
[1673198201902,1.18797191,16963.0,16962.0,0.73246509]
[1673198203436,1.18297191,16963.0,16962.0,0.73246509]
[1673198204193,1.00626105,16963.0,16962.0,0.73246509]
[1673198204710,1.00626105,16963.0,16962.0,0.14291209]
[1673198205000,1.00626105,16963.0,16962.0,0.73246509]
[1673198206270,1.00759181,16963.0,16962.0,0.73246509]
[1673198207501,1.18430267,16963.0,16962.0,0.73246509]
[1673198210258,1.78430267,16963.0,16962.0,0.73236266]
[1673198210499,1.18430267,16963.0,16962.0,0.73236266]
[1673198213336,1.00759181,16963.0,16962.0,0.73236266]
[1673198214059,0.63961581,16963.0,16962.0,0.73236266]
[1673198215567,1.72837313,16964.0,16962.0,0.73236266]
[1673198215850,1.15791683,16964.0,16962.0,0.73236266]
[1673198216066,0.367976,16963.0,16962.0,0.73236266]
[1673198216323,0.367976,16963.0,16962.0,0.59336266]
[1673198216596,0.367976,16963.0,16962.0,0.73336266]
[1673198216850,0.367976,16963.0,16962.0,0.59336266]
[1673198217090,1.15791683,16964.0,16962.0,0.73236266]
[1673198217341,0.001,16963.0,16962.0,0.73236266]
[1673198217588,0.368976,16963.0,16962.0,0.73236266]
[1673198217852,0.001,16963.0,16962.0,0.73236266]
[1673198218100,1.15791683,16964.0,16962.0,0.59336266]
[1673198218357,0.367976,16963.0,16962.0,0.729553]
[1673198218605,0.367976,16963.0,16962.0,0.589553]
[1673198218868,0.368976,16963.0,16962.0,0.728553]
[1673198219113,0.001,16963.0,16962.0,0.728553]
[1673198219642,0.001,16963.0,16962.0,1.468553]
[1673198219930,1.15791683,16964.0,16962.0,1.189553]
[1673198220395,0.367976,16963.0,16962.0,1.189553]
[1673198220629,1.15791683,16964.0,16962.0,1.779106]
[1673198220876,0.89339555,16964.0,16962.0,2.3430319]
[1673198221128,0.89339555,16964.0,16962.0,2.34303183]
[1673198221387,0.367976,16963.0,16962.0,1.189553]
[1673198221666,0.367976,16963.0,16962.0,0.729553]
[1673198221926,0.89439555,16964.0,16962.0,0.729553]
[1673198222143,1.15891683,16964.0,16962.0,0.729553]
[1673198222434,1.15791683,16964.0,16962.0,0.58965772]
[1673198222673,0.368976,16963.0,16962.0,0.728553]
[1673198222927,1.15791683,16964.0,16962.0,1.179106]
[1673198223177,1.15791683,16964.0,16962.0,1.319106]
[1673198223426,0.367976,16963.0,16962.0,1.319106]
[1673198223676,0.98561683,16964.0,16962.0,1.319106]
[1673198224193,0.98461683,16964.0,16962.0,1.179106]
[1673198224436,0.001,16963.0,16962.0,1.318106]
[1673198224695,0.98461683,16964.0,16962.0,1.779106]
[1673198225192,0.98561683,16964.0,16962.0,1.919106]
[1673198225441,0.98461683,16964.0,16962.0,1.779106]
[1673198225716,0.001,16963.0,16962.0,1.918106]
[1673198225967,0.17771086,16963.0,16962.0,1.328553]
[1673198226225,0.17671086,16963.0,16962.0,1.189553]
[1673198226480,0.17671086,16963.0,16962.0,0.589553]
[1673198227591,0.17671086,16963.0,16962.0,0.729553]
[1673198227838,0.17671086,16963.0,16962.0,0.589553]
[1673198228083,0.4242117,16963.0,16962.0,0.728553]
[1673198228321,0.7921877,16963.0,16962.0,1.328553]
[1673198228570,0.4242117,16963.0,16962.0,1.328553]
[1673198230051,0.61792707,16963.0,16962.0,1.328553]
[1673198230325,0.98590307,16963.0,16962.0,1.328553]
[1673198230597,0.63349728,16963.0,16962.0,1.328553]
[1673198230805,0.26552128,16963.0,16962.0,1.328553]
[1673198234839,0.61792707,16963.0,16962.0,1.328553]
[1673198235072,0.98590307,16963.0,16962.0,0.728553]
[1673198238056,1.16283116,16963.0,16962.0,0.728553]
[1673198238314,0.6193756,16963.0,16962.0,1.29246942]
[1673198238636,0.17792809,16963.0,16962.0,1.64086942]
[1673198238842,0.17792809,16963.0,16962.0,3.3531181]
[1673198240420,0.17792809,16963.0,16962.0,3.7147274]
[1673198240932,0.17792809,16963.0,16962.0,3.53814215]
[1673198241275,0.17792809,16963.0,16962.0,4.23814215]
[1673198241537,0.17792809,16963.0,16962.0,4.41471679]
[1673198241829,0.17792809,16963.0,16962.0,5.00426979]
[1673198242531,0.17792809,16963.0,16962.0,4.82763328]
[1673198242784,0.17792809,16963.0,16962.0,5.00413183]
[1673198243557,0.17792809,16963.0,16962.0,5.59378955]
[1673198247232,0.17792809,16963.0,16962.0,5.69881934]
[1673198248458,0.17792809,16963.0,16962.0,5.99353934]
[1673198249237,0.17792809,16963.0,16962.0,5.70398634]
[1673198249726,0.17792809,16963.0,16962.0,5.88048489]
[1673198249970,0.17792809,16963.0,16962.0,5.70398634]
[1673198250230,0.17792809,16963.0,16962.0,5.88048489]
[1673198250938,0.17792809,16963.0,16962.0,5.88058961]
[1673198252231,0.17792809,16963.0,16962.0,5.58048489]
[1673198253284,0.17792809,16963.0,16962.0,5.58058961]
[1673198254848,0.17792809,16963.0,16962.0,6.17014261]
[1673198256597,0.17792809,16963.0,16962.0,5.10206189]
[1673198257365,0.17792809,16963.0,16962.0,3.99078832]
[1673198258899,0.17792809,16963.0,16962.0,4.35876432]
[1673198260151,0.17792809,16963.0,16962.0,4.35886904]
[1673198262117,0.17792809,16963.0,16962.0,3.99089304]
[1673198263498,0.17792809,16963.0,16962.0,3.33916832]
[1673198263584,0.17792809,16963.0,16962.0,2.7752519]